fUSD/lending_fUSD_20250820
["ID","MTS","AMOUNT","RATE_DAILY","PERIOD"]
[380340174,1755697840728,-2000.0,0.00018999,2]
[380340175,1755697840738,-2000.0,0.00018999,2]
[380340176,1755697840747,-1547.50448246,0.00018999,2]
[380340177,1755697840756,-5062.93002869,0.00019,2]
[380340178,1755697840766,-500.75490201,0.00019,2]
[380340179,1755697840776,-128786.31326389,0.00019,3]
[380340180,1755697840785,-20474.32958197,0.00019,5]
[380340181,1755697840795,-1000.0,0.00019,2]
[380340182,1755697840804,-1544.70588494,0.00019,3]
[380340183,1755697840814,-151.0,0.00019,2]
[380340184,1755697840824,-151.0,0.00019,2]
[380340185,1755697840834,-765682.28699935,0.00019,2]
[380340186,1755697840843,-1466.39571027,0.00019,2]
[380340187,1755697840853,-500.0,0.00019,7]
[380340188,1755697840863,-500.0,0.00019,7]
[380340189,1755697840872,-500.0,0.00019,7]
[380340190,1755697840881,-500.0,0.00019,7]
[380340191,1755697840891,-369.47,0.00019,7]
[380340192,1755697840900,-7065.76060902,0.00019,2]
[380340193,1755697840909,-166.66666667,0.00019,2]
[380340194,1755697840919,-350.0,0.00019,2]
[380340195,1755697840928,-8039.26,0.00019,2]
[380340196,1755697840938,-151.0,0.00019,2]
[380340197,1755697840952,-151.0,0.00019,2]
[380340198,1755697840961,-212.04014818,0.00019,3]
[380340199,1755697840971,-458.46930693,0.00019,3]
[380340200,1755697840980,-2785.99003225,0.00019,2]
[380340201,1755697840990,-309.29654756,0.00019006,2]
[380340202,1755697840999,-350.20871737,0.0001901,7]
[380340203,1755697841009,-152.0,0.00019056,3]
[380340204,1755697841018,-200.0,0.000191,2]
[380340205,1755697841028,-500.0,0.0001911,2]
[380340206,1755697841037,-500.0,0.0001911,2]
[380340207,1755697841047,-500.0,0.0001911,2]
[380340208,1755697841056,-693.61200005,0.00019118,2]
[380340209,1755697841065,-2000.0,0.0001915,2]
[380340210,1755697841075,-12228.84,0.00019151,2]
[380340211,1755697841085,-150.0,0.00019177,2]
[380340212,1755697841097,-503.9,0.00019178,2]
[380340213,1755697841107,-151.0,0.00019178,2]
[380340214,1755697841116,-3326.26,0.00019178,2]
[380340215,1755697841126,-5000.0,0.00019178,2]
[380340216,1755697841137,-29708.35,0.00019178,2]
[380340217,1755697841146,-500.0,0.00019182,2]
[380340218,1755697841155,-1711.0,0.00019196,2]
[380340219,1755697841165,-1960.75059,0.0001932,2]
[380340221,1755697841175,-2785.99003225,0.0001934,2]
[380340223,1755697841184,-500.0,0.00019384,2]
[380340225,1755697841194,-500.0,0.00019384,2]
[380340227,1755697841206,-500.0,0.00019384,2]
[380340229,1755697841216,-317.0,0.00019397,3]
[380340230,1755697841225,-1016.02791929,0.000194,2]
[380340231,1755697841234,-503.9,0.00019452,2]
[380340232,1755697841243,-693.61200005,0.00019455,2]
[380340233,1755697841252,-10000.0,0.00019463,7]
[380340234,1755697841262,-1000.0,0.00019474,2]
[380340235,1755697841271,-212.04014818,0.000195,7]
[380340236,1755697841280,-458.46930693,0.000195,7]
[380340237,1755697841290,-200.0,0.0001951,2]
[380340238,1755697841635,-1000.0,0.00019537,2]
[380340239,1755697841646,-152.0,0.00019561,4]
[380340240,1755697841655,-500.0,0.00019658,2]
[380340241,1755697841666,-500.0,0.00019658,2]
[380340242,1755697841676,-500.0,0.00019658,2]
[380340243,1755697841686,-150.0,0.0001968,2]
[380340244,1755697841697,-2785.99003225,0.0001968,2]
[380340245,1755697841707,-47487.3,0.000197,2]
[380340246,1755697841717,-156.587,0.00019726,2]
[380340247,1755697841726,-524.49015239,0.00019768,2]
[380340248,1755697841736,-150.0,0.00019775,4]
[380340249,1755697841745,-165.38518678,0.00019775,4]
[380340250,1755697841754,-150.0,0.00019775,4]
[380340251,1755697841764,-150.0,0.00019775,4]
[380340252,1755697841774,-150.0,0.00019775,4]
[380340253,1755697841783,-150.0,0.00019775,4]
[380340254,1755697841793,-150.56440366,0.00019775,4]
[380340255,1755697841803,-150.0,0.00019775,4]
[380340256,1755697841812,-150.0,0.00019775,4]
[380340257,1755697841822,-150.0,0.00019775,4]
[380340258,1755697841832,-150.0,0.00019775,4]
[380340259,1755697841841,-150.0,0.00019775,4]
[380340260,1755697841852,-150.0,0.00019775,4]
[380340261,1755697841861,-693.61200005,0.00019791,2]
[380340262,1755697841871,-500.0,0.00019836,2]
[380340263,1755697841880,-6291.75515061,0.00019852,2]
[380340264,1755697841890,-1099.82,0.00019863,2]
[380340265,1755697841899,-315.27,0.00019893,2]
[380340266,1755697841909,-4820.12001937,0.000199,3]
[380340267,1755697841918,-8039.26,0.000199,2]
[380340268,1755697841928,-10352.22550877,0.000199,2]
[380340269,1755697841938,-150.0,0.00019905,4]
[380340270,1755697841948,-150.0,0.0001993,2]
[380340271,1755697841958,-790.66026478,0.00019931,2]
[380340272,1755697841968,-500.0,0.00019932,2]
[380340273,1755697841978,-500.0,0.00019932,2]
[380340274,1755697841988,-500.0,0.00019932,2]
[380340275,1755697841998,-1007.70425904,0.00019932,2]
[380340276,1755697842008,-1224.74825329,0.00019934,2]
[380340277,1755697842018,-1441.79224754,0.00019935,2]
[380340278,1755697842028,-610.096702,0.00019936,2]
[380340279,1755697842037,-1658.8362418,0.00019936,2]
[380340280,1755697842048,-1875.88023605,0.00019937,2]
[380340281,1755697842059,-2092.92423031,0.00019938,2]
[380340282,1755697842069,-2309.96822456,0.00019939,2]
[380340283,1755697842082,-2527.01221881,0.0001994,2]
[380340284,1755697842100,-300.0,0.00019949,2]
[380340285,1755697842119,-300.0,0.00019949,2]
[380340286,1755697842139,-300.0,0.00019949,2]
[380340287,1755697842160,-300.0,0.00019949,2]
[380340288,1755697842180,-300.0,0.00019949,2]
[380340289,1755697842201,-300.0,0.00019949,2]
[380340290,1755697842212,-300.0,0.00019949,2]
[380340291,1755697842222,-300.0,0.00019949,2]
[380340292,1755697842231,-399105.76856078,0.0001995,15]
[380340293,1755697842241,-122964.0531784,0.0001995,15]
[380340294,1755697842252,-46582.31905774,0.0001995,15]
[380340295,1755697842261,-151.0,0.0001995,2]
[380340296,1755697842271,-151.0,0.0001995,2]
[380340297,1755697842280,-151.0,0.0001995,2]
[380340298,1755697842290,-151.0,0.0001995,2]
[380340299,1755697842299,-151.0,0.0001995,2]
[380340300,1755697842309,-151.0,0.0001995,2]
[380340301,1755697842318,-151.0,0.0001995,2]
[380340302,1755697842328,-219.1891,0.0001995,2]
[380340303,1755697842337,-151.0,0.0001995,2]
[380340304,1755697842347,-151.0,0.0001995,2]
[380340305,1755697842356,-151.0,0.0001995,2]
[380340306,1755697842366,-151.0,0.0001995,2]
[380340307,1755697842376,-151.0,0.0001995,2]
[380340308,1755697842385,-151.0,0.0001995,2]
[380340309,1755697842395,-153.412608,0.0001995,2]
[380340310,1755697842404,-151.0,0.0001995,2]
[380340311,1755697842413,-151.0,0.0001995,2]
[380340312,1755697842423,-151.0,0.0001995,2]
[380340313,1755697842433,-151.0,0.0001995,2]
[380340314,1755697842443,-151.0,0.0001995,2]
[380340315,1755697842455,-151.0,0.0001995,2]
[380340316,1755697842464,-200.051188,0.0001995,2]
[380340317,1755697842473,-151.0,0.0001995,2]
[380340318,1755697842483,-151.0,0.0001995,2]
[380340319,1755697842493,-151.0,0.0001995,2]
[380340320,1755697842503,-151.0,0.0001995,2]
[380340321,1755697842513,-151.0,0.0001995,2]
[380340322,1755697842522,-151.0,0.0001995,2]
[380340323,1755697842532,-151.0,0.0001995,2]
[380340324,1755697842541,-151.0,0.0001995,2]
[380340325,1755697842551,-151.0,0.0001995,2]
[380340326,1755697842561,-151.0,0.0001995,2]
[380340327,1755697842570,-151.0,0.0001995,2]
[380340328,1755697842579,-151.0,0.0001995,2]
[380340329,1755697842589,-157.958321,0.0001995,2]
[380340330,1755697842599,-151.0,0.0001995,2]
[380340331,1755697842608,-151.0,0.0001995,2]
[380340332,1755697842618,-151.0,0.0001995,2]
[380340333,1755697842627,-151.0,0.0001995,2]
[380340334,1755697842636,-151.186818,0.0001995,2]
[380340335,1755697842646,-151.0,0.0001995,2]
[380340336,1755697842656,-151.0,0.0001995,2]
[380340337,1755697842665,-151.0,0.0001995,2]
[380340338,1755697842675,-151.0,0.0001995,2]
[380340339,1755697842685,-151.0,0.0001995,2]
[380340340,1755697842696,-151.0,0.0001995,2]
[380340341,1755697842706,-151.0,0.0001995,2]
[380340342,1755697842715,-151.0,0.0001995,2]
[380340343,1755697842725,-151.0,0.0001995,2]
[380340344,1755697842735,-151.0,0.0001995,2]
[380340345,1755697842745,-275.910648,0.0001995,2]
[380340346,1755697842755,-151.0,0.0001995,2]
[380340347,1755697842764,-151.0,0.0001995,2]
[380340348,1755697842774,-151.0,0.0001995,2]
[380340349,1755697842784,-151.0,0.0001995,2]
[380340350,1755697842793,-151.0,0.0001995,2]
[380340351,1755697842804,-151.0,0.0001995,2]
[380340352,1755697842813,-151.222401,0.0001995,2]
[380340353,1755697842823,-151.0,0.0001995,2]
[380340354,1755697842833,-151.0,0.0001995,2]
[380340355,1755697842843,-151.0,0.0001995,2]
[380340356,1755697842852,-151.0,0.0001995,2]
[380340357,1755697842861,-170.426869,0.0001995,2]
[380340358,1755697842871,-265.070583,0.0001995,2]
[380340359,1755697842880,-263.253217,0.0001995,2]
[380340360,1755697842890,-263.253217,0.0001995,2]
[380340361,1755697842899,-263.253217,0.0001995,2]
[380340362,1755697842909,-263.253217,0.0001995,2]
[380340363,1755697842918,-151.0,0.0001995,2]
[380340364,1755697842928,-602.731736,0.0001995,2]
[380340365,1755697842938,-1384.408803,0.0001995,2]
[380340366,1755697842949,-602.731736,0.0001995,2]
[380340367,1755697842959,-151.0,0.0001995,2]
[380340368,1755697842968,-1384.408803,0.0001995,2]
[380340369,1755697842977,-602.731736,0.0001995,2]
[380340370,1755697842987,-151.0,0.0001995,2]
[380340371,1755697842997,-1384.408803,0.0001995,2]
[380340373,1755697843007,-602.731736,0.0001995,2]
[380340375,1755697843016,-1384.408803,0.0001995,2]
[380340377,1755697843026,-394.618863,0.0001995,2]
[380340379,1755697843035,-394.618863,0.0001995,2]
[380340380,1755697843045,-394.618863,0.0001995,2]
[380340381,1755697843055,-394.618863,0.0001995,2]
[380340383,1755697843065,-151.0,0.0001995,2]
[380340384,1755697843075,-151.0,0.0001995,2]
[380340386,1755697843086,-151.0,0.0001995,2]
[380340388,1755697843096,-151.0,0.0001995,2]
[380340390,1755697843106,-151.0,0.0001995,2]
[380340391,1755697843115,-151.0,0.0001995,2]
[380340392,1755697843127,-151.0,0.0001995,2]
[380340393,1755697843136,-151.0,0.0001995,2]
[380340394,1755697843146,-205.765105,0.0001995,2]
[380340395,1755697843156,-244.790897,0.0001995,2]
[380340396,1755697843167,-244.790897,0.0001995,2]
[380340397,1755697843178,-244.790897,0.0001995,2]
[380340400,1755697843188,-244.790897,0.0001995,2]
[380340402,1755697843200,-364.699135,0.0001995,2]
[380340404,1755697843210,-181.59953,0.0001995,2]
[380340407,1755697843220,-151.0,0.0001995,2]
[380340408,1755697843230,-364.699135,0.0001995,2]
[380340409,1755697843239,-181.59953,0.0001995,2]
[380340410,1755697843250,-151.0,0.0001995,2]
[380340411,1755697843260,-364.699135,0.0001995,2]
[380340412,1755697843270,-181.59953,0.0001995,2]
[380340413,1755697843280,-151.0,0.0001995,2]
[380340414,1755697843289,-364.699135,0.0001995,2]
[380340415,1755697843299,-181.59953,0.0001995,2]
[380340416,1755697843308,-151.0,0.0001995,2]
[380340417,1755697843317,-339.973178,0.0001995,2]
[380340418,1755697843327,-339.973178,0.0001995,2]
[380340419,1755697843336,-339.973178,0.0001995,2]
[380340420,1755697843345,-339.973178,0.0001995,2]
[380340422,1755697843355,-177.01881,0.0001995,2]
[380340423,1755697843364,-177.01881,0.0001995,2]
[380340424,1755697843374,-177.01881,0.0001995,2]
[380340425,1755697843383,-177.01881,0.0001995,2]
[380340426,1755697843393,-151.0,0.0001995,2]
[380340427,1755697843403,-544.758269,0.0001995,2]
[380340428,1755697843412,-544.758269,0.0001995,2]
[380340429,1755697843422,-544.758269,0.0001995,2]
[380340430,1755697843431,-151.0,0.0001995,2]
[380340431,1755697843441,-194.581413,0.0001995,2]
[380340432,1755697843452,-544.758269,0.0001995,2]
[380340433,1755697843462,-151.0,0.0001995,2]
[380340434,1755697843471,-194.581413,0.0001995,2]
[380340435,1755697843480,-191.262291,0.0001995,2]
[380340436,1755697843490,-194.581413,0.0001995,2]
[380340437,1755697843500,-191.262291,0.0001995,2]
[380340438,1755697843509,-194.581413,0.0001995,2]
[380340439,1755697843519,-191.262291,0.0001995,2]
[380340440,1755697843528,-191.262291,0.0001995,2]
[380340441,1755697843537,-151.0,0.0001995,2]
[380340443,1755697843547,-151.0,0.0001995,2]
[380340444,1755697843557,-258.030876,0.0001995,2]
[380340445,1755697843566,-180.651999,0.0001995,2]
[380340446,1755697843576,-151.0,0.0001995,2]
[380340447,1755697843585,-151.0,0.0001995,2]
[380340448,1755697843595,-290.034428,0.0001995,2]
[380340449,1755697843604,-151.0,0.0001995,2]
[380340450,1755697843613,-151.0,0.0001995,2]
[380340451,1755697843623,-151.0,0.0001995,2]
[380340452,1755697843632,-151.0,0.0001995,2]
[380340453,1755697843642,-151.0,0.0001995,2]
[380340454,1755697843651,-151.0,0.0001995,2]
[380340455,1755697843661,-151.0,0.0001995,2]
[380340456,1755697843671,-151.0,0.0001995,2]
[380340457,1755697843680,-151.0,0.0001995,2]
[380340458,1755697843690,-151.0,0.0001995,2]
[380340460,1755697843701,-151.0,0.0001995,2]
[380340462,1755697843711,-151.0,0.0001995,2]
[380340464,1755697843720,-151.0,0.0001995,2]
[380340467,1755697843730,-151.0,0.0001995,2]
[380340469,1755697843739,-151.0,0.0001995,2]
[380340471,1755697843749,-151.0,0.0001995,2]
[380340474,1755697843758,-151.0,0.0001995,2]
[380340475,1755697843768,-151.0,0.0001995,2]
[380340476,1755697843777,-151.0,0.0001995,2]
[380340477,1755697843786,-151.0,0.0001995,2]
[380340478,1755697843796,-151.0,0.0001995,2]
[380340479,1755697843805,-151.32211,0.0001995,2]
[380340480,1755697843815,-197.544251,0.0001995,2]
[380340481,1755697843824,-151.0,0.0001995,2]
[380340482,1755697843834,-174.220456,0.0001995,2]
[380340484,1755697843843,-151.0,0.0001995,2]
[380340486,1755697843852,-151.0,0.0001995,2]
[380340488,1755697843862,-217.157294,0.0001995,2]
[380340491,1755697843872,-151.0,0.0001995,2]
[380340493,1755697843882,-154.827387,0.0001995,2]
[380340495,1755697843894,-154.827387,0.0001995,2]
[380340496,1755697843903,-154.827387,0.0001995,2]
[380340497,1755697843913,-154.827387,0.0001995,2]
[380340498,1755697843922,-151.0,0.0001995,2]
[380340499,1755697843932,-151.0,0.0001995,2]
[380340500,1755697843942,-151.0,0.0001995,2]
[380340501,1755697843954,-413.486481,0.0001995,2]
[380340502,1755697843964,-413.486481,0.0001995,2]
[380340503,1755697843974,-151.0,0.0001995,2]
[380340504,1755697843984,-151.0,0.0001995,2]
[380340505,1755697843994,-2171.224154,0.0001995,2]
[380340506,1755697844003,-2171.224154,0.0001995,2]
[380340507,1755697844012,-151.0,0.0001995,2]
[380340508,1755697844022,-151.0,0.0001995,2]
[380340509,1755697844031,-2171.224154,0.0001995,2]
[380340510,1755697844181,-151.0,0.0001995,2]
[380340511,1755697844192,-151.0,0.0001995,2]
[380340512,1755697844205,-151.0,0.0001995,2]
[380340513,1755697844214,-151.0,0.0001995,2]
[380340514,1755697844225,-151.0,0.0001995,2]
[380340515,1755697844234,-413.486481,0.0001995,2]
[380340516,1755697844244,-192.985103,0.0001995,2]
[380340517,1755697844254,-2171.224154,0.0001995,2]
[380340518,1755697844263,-413.486481,0.0001995,2]
[380340519,1755697844273,-151.0,0.0001995,2]
[380340520,1755697844283,-157.492832,0.0001995,2]
[380340521,1755697844293,-151.0,0.0001995,2]
[380340522,1755697844303,-151.0,0.0001995,2]
[380340523,1755697844313,-151.0,0.0001995,2]
[380340524,1755697844322,-151.0,0.0001995,2]
[380340525,1755697844334,-151.0,0.0001995,2]
[380340526,1755697844343,-151.0,0.0001995,2]
[380340527,1755697844353,-151.0,0.0001995,2]
[380340528,1755697844363,-151.0,0.0001995,2]
[380340529,1755697844372,-151.0,0.0001995,2]
[380340530,1755697844381,-151.0,0.0001995,2]
[380340531,1755697844391,-216.559262,0.0001995,2]
[380340532,1755697844401,-274.371463,0.0001995,2]
[380340533,1755697844411,-274.371463,0.0001995,2]
[380340534,1755697844422,-420.120718,0.0001995,2]
[380340535,1755697844435,-274.371463,0.0001995,2]
[380340536,1755697844445,-151.0,0.0001995,2]
[380340537,1755697844456,-274.371463,0.0001995,2]
[380340538,1755697844466,-151.0,0.0001995,2]
[380340539,1755697844475,-420.120718,0.0001995,2]
[380340540,1755697844485,-420.120718,0.0001995,2]
[380340541,1755697844495,-151.0,0.0001995,2]
[380340542,1755697844505,-151.0,0.0001995,2]
[380340543,1755697844514,-151.0,0.0001995,2]
[380340544,1755697844524,-151.0,0.0001995,2]
[380340545,1755697844533,-420.120718,0.0001995,2]
[380340546,1755697844543,-301.523081,0.0001995,2]
[380340547,1755697844552,-151.0,0.0001995,2]
[380340548,1755697844562,-151.0,0.0001995,2]
[380340549,1755697844571,-151.0,0.0001995,2]
[380340550,1755697844583,-151.0,0.0001995,2]
[380340551,1755697844596,-151.0,0.0001995,2]
[380340552,1755697844606,-151.0,0.0001995,2]
[380340553,1755697844615,-151.0,0.0001995,2]
[380340554,1755697844624,-151.0,0.0001995,2]
[380340555,1755697844634,-151.0,0.0001995,2]
[380340556,1755697844643,-151.0,0.0001995,2]
[380340557,1755697844652,-228.285808,0.0001995,2]
[380340558,1755697844661,-151.0,0.0001995,2]
[380340559,1755697844671,-151.0,0.0001995,2]
[380340560,1755697844680,-151.0,0.0001995,2]
[380340561,1755697844690,-184.879248,0.0001995,2]
[380340562,1755697844699,-151.0,0.0001995,2]
[380340563,1755697844709,-184.879248,0.0001995,2]
[380340564,1755697844718,-151.0,0.0001995,2]
[380340565,1755697844727,-184.879248,0.0001995,2]
[380340566,1755697844737,-184.879248,0.0001995,2]
[380340567,1755697844746,-151.0,0.0001995,2]
[380340568,1755697844756,-151.454405,0.0001995,2]
[380340569,1755697844765,-151.0,0.0001995,2]
[380340570,1755697844774,-151.0,0.0001995,2]
[380340571,1755697844783,-151.0,0.0001995,2]
[380340572,1755697844793,-151.0,0.0001995,2]
[380340573,1755697844802,-151.0,0.0001995,2]
[380340574,1755697844811,-151.0,0.0001995,2]
[380340575,1755697844820,-151.0,0.0001995,2]
[380340576,1755697844830,-151.0,0.0001995,2]
[380340577,1755697844839,-668.366899,0.0001995,2]
[380340578,1755697844849,-151.0,0.0001995,2]
[380340579,1755697844858,-151.0,0.0001995,2]
[380340580,1755697844871,-668.366899,0.0001995,2]
[380340581,1755697844880,-151.0,0.0001995,2]
[380340582,1755697844889,-151.0,0.0001995,2]
[380340583,1755697844898,-167.501088,0.0001995,2]
[380340584,1755697844907,-668.366899,0.0001995,2]
[380340585,1755697844917,-151.0,0.0001995,2]
[380340586,1755697844926,-151.0,0.0001995,2]
[380340587,1755697844935,-668.366899,0.0001995,2]
[380340588,1755697844944,-151.0,0.0001995,2]
[380340589,1755697844956,-151.0,0.0001995,2]
[380340590,1755697844965,-151.0,0.0001995,2]
[380340591,1755697844975,-219.597371,0.0001995,2]
[380340592,1755697844984,-151.0,0.0001995,2]
[380340593,1755697844992,-189.666131,0.0001995,2]
[380340594,1755697845002,-219.597371,0.0001995,2]
[380340595,1755697845011,-229.79223,0.0001995,2]
[380340596,1755697845020,-151.0,0.0001995,2]
[380340597,1755697845029,-189.666131,0.0001995,2]
[380340598,1755697845039,-219.597371,0.0001995,2]
[380340599,1755697845048,-229.79223,0.0001995,2]
[380340600,1755697845057,-219.597371,0.0001995,2]
[380340601,1755697845066,-229.79223,0.0001995,2]
[380340602,1755697845075,-189.666131,0.0001995,2]
[380340603,1755697845087,-241.830222,0.0001995,2]
[380340604,1755697845098,-189.666131,0.0001995,2]
[380340605,1755697845107,-229.79223,0.0001995,2]
[380340606,1755697845116,-150.0,0.00019958,4]
[380340607,1755697845127,-514.0,0.0001997,2]
[380340608,1755697845136,-400.0,0.0001997,2]
[380340609,1755697845145,-251.01157101,0.00019973,2]
[380340610,1755697845155,-500.0,0.00019973,2]
[380340611,1755697845164,-500.0,0.00019973,2]
[380340612,1755697845173,-500.0,0.00019973,2]
[380340613,1755697845183,-500.0,0.00019973,2]
[380340614,1755697845191,-500.0,0.00019973,2]
[380340615,1755697845203,-500.0,0.00019973,2]
[380340616,1755697845212,-500.0,0.00019973,2]
[380340617,1755697845221,-639.74227414,0.00019973,2]
[380340618,1755697845231,-500.0,0.00019973,2]
[380340619,1755697845241,-160.03442829,0.00019973,2]
[380340620,1755697845254,-500.0,0.00019973,2]
[380340621,1755697845263,-500.0,0.00019973,2]
[380340622,1755697845273,-500.0,0.00019973,2]
[380340623,1755697845283,-500.0,0.00019973,2]
[380340624,1755697845293,-500.0,0.00019973,2]
[380340625,1755697845303,-500.0,0.00019973,2]
[380340626,1755697845313,-500.0,0.00019973,2]
[380340627,1755697845323,-500.0,0.00019973,2]
[380340628,1755697845333,-500.0,0.00019973,2]
[380340629,1755697845342,-500.0,0.00019973,2]
[380340630,1755697845352,-500.0,0.00019973,2]
[380340631,1755697845361,-500.0,0.00019973,2]
[380340632,1755697845370,-500.0,0.00019973,2]
[380340633,1755697845379,-500.0,0.00019973,2]
[380340634,1755697845389,-500.0,0.00019973,2]
[380340635,1755697845398,-500.0,0.00019973,2]
[380340636,1755697845407,-500.0,0.00019973,2]
[380340637,1755697845416,-500.0,0.00019973,2]
[380340638,1755697845425,-589.99825164,0.00019973,2]
[380340639,1755697845434,-645.07709066,0.00019973,2]
[380340640,1755697845443,-500.0,0.00019973,2]
[380340641,1755697845454,-4000.0,0.00019984,5]
[380340642,1755697845463,-300.0,0.00019984,2]
[380340643,1755697845473,-300.0,0.00019984,2]
[380340644,1755697845483,-300.0,0.00019984,2]
[380340645,1755697845492,-300.0,0.00019984,2]
[380340646,1755697845502,-76998.68380147,0.00019985,2]
[380340647,1755697845510,-610.096702,0.00019986,2]
[380340648,1755697845519,-610.096702,0.00019986,2]
[380340649,1755697845528,-1015.3394148,0.0001999,15]
[380340650,1755697845538,-610.096702,0.00019996,2]
[380340651,1755697845547,-666.0,0.00019999,2]
[380340652,1755697845556,-300.0,0.00019999,2]
[380340653,1755697845566,-300.0,0.00019999,2]
[380340654,1755697845575,-300.0,0.00019999,2]
[380340655,1755697845585,-327.34944787,0.00019999,2]
[380340656,1755697845594,-300.0,0.00019999,2]
[380340657,1755697845604,-45918.39120416,0.0002,2]
[380340658,1755697845613,-1500.0,0.0002,2]
[380340659,1755697845622,-800.0,0.0002,2]
[380340660,1755697845631,-213.46,0.0002,2]
[380340661,1755697845641,-93246.60895703,0.0002,2]
[380340662,1755697845650,-1503.15407903,0.0002,2]
[380340663,1755697845659,-6004.88335684,0.0002,2]
[380340664,1755697845668,-1433.42192485,0.0002,5]
[380340665,1755697845678,-25091.13708606,0.0002,2]
[380340666,1755697845687,-408223.09729732,0.0002,5]
[380340667,1755697845696,-200.0,0.0002,2]
[380340668,1755697845707,-8300.0,0.0002,4]
[380340669,1755697845716,-5734.72946639,0.0002,2]
[380340670,1755697845725,-1269.37406368,0.0002,2]
[380340671,1755697845734,-7230.8561613,0.0002,2]
[380340672,1755697845743,-2018.84029719,0.0002,3]
[380340673,1755697845752,-2866.55156726,0.0002,7]
[380340674,1755697845760,-516.82543932,0.0002,7]
[380340675,1755697845770,-150.0,0.0002,2]
[380340676,1755697845779,-1024.43618529,0.0002,2]
[380340677,1755697845788,-58830.90349928,0.0002,2]
[380340690,1755697847282,-150.0,0.00017347,2]
[380340691,1755697847293,-151.0,0.0001995,2]
[380340692,1755697847303,-134.72425938,0.0002,2]
[380340693,1755697847319,-15834.0,0.0002,2]
[380340694,1755697847338,-15438.42936854,0.0002,2]
[380340695,1755697847347,-4163.82967856,0.0002,2]
[380340696,1755697847582,-160.14395264,0.00018035,2]
[380340697,1755697847592,-204.47687779,0.00018035,2]
[380340698,1755697847601,-500.0,0.00018035,2]
[380340699,1755697847611,-175.89217029,0.00018035,2]
[380340700,1755697847622,-324.10782971,0.00018035,2]
[380340701,1755697847631,-204.13474587,0.00018035,2]
[380340702,1755697847641,-248.28,0.0001899,2]
[380340703,1755697847650,-248.28,0.0001899,2]
[380340704,1755697847660,-248.28,0.0001899,2]
[380340705,1755697847670,-248.28,0.0001899,2]
[380340706,1755697847679,-248.28,0.0001899,2]
[380340707,1755697847688,-248.28,0.00019168,2]
[380340708,1755697847697,-248.28,0.00019453,2]
[380340709,1755697847709,-248.28,0.0001969,2]
[380340710,1755697847718,-248.28,0.00019926,2]
[380340711,1755697847728,-248.28,0.0001994,2]
[380340712,1755697847737,-248.28,0.0001994,2]
[380340713,1755697847746,-248.28,0.0001994,2]
[380340714,1755697847756,-248.28,0.0001994,2]
[380340715,1755697847765,-248.28,0.0001994,2]
[380340716,1755697847775,-248.28,0.0001994,2]
[380340717,1755697847784,-248.28,0.0001994,2]
[380340718,1755697847794,-248.28,0.0001994,2]
[380340719,1755697847803,-248.28,0.0001994,2]
[380340720,1755697847812,-248.28,0.0001994,2]
[380340721,1755697847821,-167.368764,0.0001995,2]
[380340722,1755697847831,-167.368764,0.0001995,2]